fUST/lending_fUST_20250313
["ID","MTS","AMOUNT","RATE_DAILY","PERIOD"]
[356031035,1741809038967,-500.0,0.00021698,2]
[356031036,1741809038977,-500.0,0.00021698,2]
[356031037,1741809038987,-500.0,0.00021698,2]
[356031038,1741809038996,-500.0,0.00021698,2]
[356031039,1741809039006,-500.0,0.00021698,2]
[356031040,1741809039016,-500.0,0.00021698,2]
[356031041,1741809039025,-500.0,0.00021698,2]
[356031042,1741809039034,-554.90779426,0.00021698,2]
[356031043,1741809039043,-500.0,0.00021698,2]
[356031044,1741809039053,-500.0,0.00021698,2]
[356031045,1741809039062,-500.0,0.00021698,2]
[356031046,1741809039073,-500.0,0.00021698,2]
[356031047,1741809039083,-500.0,0.00021698,2]
[356031048,1741809039093,-4459.79,0.00021698,2]
[356031049,1741809039101,-16831.63998196,0.00021699,2]
[356031050,1741809039111,-800.0,0.000217,2]
[356031051,1741809039120,-799.99,0.000217,2]
[356031052,1741809039129,-799.99,0.000217,2]
[356031053,1741809039138,-800.0,0.000217,2]
[356031054,1741809039148,-799.99,0.000217,2]
[356031055,1741809039157,-799.99,0.000217,2]
[356031056,1741809039168,-799.99,0.000217,2]
[356031057,1741809039178,-799.99,0.000217,2]
[356031058,1741809039188,-799.99,0.000217,2]
[356031059,1741809039200,-799.99,0.000217,2]
[356031060,1741809039210,-151.1392752,0.000217,2]
[356031061,1741809039220,-200.0,0.00021707,2]
[356031062,1741809039229,-398.23,0.00021707,3]
[356031063,1741809039238,-199.11,0.00021707,3]
[356031064,1741809039248,-597.38,0.00021707,3]
[356031065,1741809039257,-6433.87215642,0.00021717,2]
[356031066,1741809039269,-19223.20837642,0.00021717,2]
[356031067,1741809039280,-121342.91946716,0.00021717,2]
[356031068,1741809039290,-288.64897534,0.00021727,2]
[356031069,1741809039299,-288.64897534,0.00021757,2]
[356031070,1741809039309,-288.64897534,0.00021787,2]
[356031071,1741809039319,-288.64897534,0.00021817,2]
[356031072,1741809039328,-174.09255559,0.00021817,2]
[356031073,1741809039337,-288.54718482,0.00021828,2]
[356031074,1741809039346,-151.0,0.000219,4]
[356031075,1741809039355,-2364.75028432,0.000219,3]
[356031076,1741809039364,-302.0,0.00021904,2]
[356031077,1741809039373,-600.0,0.00021904,2]
[356031078,1741809039383,-500.0,0.00021917,2]
[356031079,1741809039399,-471.5211211,0.00021917,2]
[356031080,1741809039408,-623.93223261,0.00021917,2]
[356031081,1741809039418,-256.46784854,0.00021917,2]
[356031082,1741809039427,-631.47600512,0.00021917,2]
[356031083,1741809039437,-611.56,0.00021917,2]
[356031084,1741809039448,-500.0,0.00021917,2]
[356031085,1741809039457,-229.31550462,0.00021917,2]
[356031086,1741809039466,-500.0,0.00021917,2]
[356031087,1741809039475,-500.0,0.00021917,2]
[356031088,1741809039485,-500.0,0.00021917,2]
[356031089,1741809039494,-511.25787417,0.00021917,2]
[356031090,1741809039503,-500.0,0.00021917,2]
[356031091,1741809039513,-500.0,0.00021917,2]
[356031092,1741809039522,-500.0,0.00021917,2]
[356031093,1741809039532,-500.0,0.00021917,2]
[356031094,1741809039541,-500.0,0.00021917,2]
[356031095,1741809039551,-500.0,0.00021917,2]
[356031096,1741809039560,-571.78,0.00021917,2]
[356031097,1741809039569,-500.0,0.00021917,2]
[356031098,1741809039579,-823.03,0.00021917,2]
[356031099,1741809039588,-579.10752232,0.00021917,2]
[356031100,1741809039597,-500.0,0.00021917,2]
[356031101,1741809039607,-500.0,0.00021917,2]
[356031102,1741809039616,-300.0,0.00021917,2]
[356031103,1741809039626,-500.0,0.00021917,2]
[356031104,1741809039635,-500.0,0.00021917,2]
[356031105,1741809039645,-500.0,0.00021917,2]
[356031106,1741809039655,-500.0,0.00021917,2]
[356031107,1741809039665,-500.0,0.00021917,2]
[356031108,1741809039674,-500.0,0.00021917,2]
[356031109,1741809039684,-889.88,0.00021917,2]
[356031110,1741809039696,-500.0,0.00021917,2]
[356031111,1741809039706,-502.60272172,0.00021917,2]
[356031112,1741809039715,-500.0,0.00021917,2]
[356031113,1741809039725,-503.57799636,0.00021917,2]
[356031114,1741809039734,-500.0,0.00021917,2]
[356031115,1741809039744,-500.0,0.00021917,2]
[356031116,1741809039754,-500.0,0.00021917,2]
[356031117,1741809039764,-500.0,0.00021917,2]
[356031118,1741809039774,-500.0,0.00021917,2]
[356031119,1741809039783,-500.0,0.00021917,2]
[356031120,1741809039792,-445.71381202,0.00021917,2]
[356031121,1741809039801,-500.0,0.00021917,2]
[356031122,1741809039812,-500.0,0.00021917,2]
[356031123,1741809039822,-1004.54,0.00021917,2]
[356031124,1741809039831,-500.0,0.00021917,2]
[356031125,1741809039841,-500.0,0.00021917,2]
[356031126,1741809039850,-500.0,0.00021917,2]
[356031127,1741809039859,-625.79,0.00021917,2]
[356031128,1741809039870,-500.0,0.00021917,2]
[356031129,1741809039879,-500.0,0.00021917,2]
[356031130,1741809039888,-500.0,0.00021917,2]
[356031131,1741809039897,-500.0,0.00021917,2]
[356031132,1741809039906,-500.0,0.00021917,2]
[356031133,1741809039915,-495.0,0.00021917,2]
[356031134,1741809039924,-500.0,0.00021917,2]
[356031135,1741809039933,-324.02963386,0.00021917,2]
[356031136,1741809039943,-500.0,0.00021917,2]
[356031137,1741809039952,-500.0,0.00021917,2]
[356031138,1741809039961,-500.0,0.00021917,2]
[356031139,1741809039970,-500.0,0.00021917,2]
[356031140,1741809039980,-500.0,0.00021917,2]
[356031141,1741809039990,-500.0,0.00021917,2]
[356031142,1741809039999,-500.0,0.00021917,2]
[356031143,1741809040009,-500.0,0.00021917,2]
[356031144,1741809040018,-500.0,0.00021917,2]
[356031145,1741809040028,-500.0,0.00021917,5]
[356031146,1741809040037,-500.0,0.00021917,2]
[356031147,1741809040047,-500.0,0.00021917,2]
[356031148,1741809040056,-500.0,0.00021917,2]
[356031149,1741809040065,-500.0,0.00021917,2]
[356031150,1741809040078,-500.0,0.00021917,2]
[356031151,1741809040087,-500.0,0.00021917,2]
[356031152,1741809040096,-500.0,0.00021917,2]
[356031153,1741809040106,-500.0,0.00021917,2]
[356031154,1741809040115,-500.0,0.00021917,2]
[356031155,1741809040124,-500.0,0.00021917,2]
[356031156,1741809040134,-500.0,0.00021917,2]
[356031157,1741809040144,-500.0,0.00021917,2]
[356031158,1741809040154,-500.0,0.00021917,2]
[356031159,1741809040163,-500.0,0.00021917,2]
[356031160,1741809040172,-244.09021737,0.00021917,2]
[356031161,1741809040182,-500.0,0.00021917,2]
[356031162,1741809040191,-500.0,0.00021917,2]
[356031163,1741809040203,-500.0,0.00021917,2]
[356031169,1741809040436,-500.0,0.00021917,2]
[356031170,1741809040446,-500.0,0.00021917,2]
[356031171,1741809040455,-500.0,0.00021917,2]
[356031172,1741809040464,-500.0,0.00021917,2]
[356031173,1741809040473,-500.0,0.00021917,2]
[356031174,1741809040482,-500.0,0.00021917,2]
[356031176,1741809040491,-500.0,0.00021917,2]
[356031177,1741809040501,-500.0,0.00021917,2]
[356031178,1741809040510,-500.0,0.00021917,2]
[356031179,1741809040520,-500.0,0.00021917,2]
[356031180,1741809040529,-500.0,0.00021917,2]
[356031182,1741809040539,-500.89211243,0.00021917,2]
[356031183,1741809040548,-500.0,0.00021917,2]
[356031184,1741809040557,-500.0,0.00021917,2]
[356031185,1741809040567,-500.0,0.00021917,2]
[356031186,1741809040577,-500.0,0.00021917,2]
[356031187,1741809040586,-500.0,0.00021917,2]
[356031188,1741809040595,-500.0,0.00021917,2]
[356031190,1741809040604,-500.0,0.00021917,2]
[356031191,1741809040614,-500.0,0.00021917,2]
[356031192,1741809040623,-500.0,0.00021917,2]
[356031193,1741809040632,-500.0,0.00021917,2]
[356031194,1741809040641,-500.0,0.00021917,2]
[356031196,1741809040650,-500.0,0.00021917,2]
[356031198,1741809040659,-500.0,0.00021917,2]
[356031199,1741809040669,-243.68,0.00021917,2]
[356031200,1741809040678,-500.0,0.00021917,2]
[356031201,1741809040687,-502.26857918,0.00021917,2]
[356031202,1741809040699,-532.81226363,0.00021917,2]
[356031203,1741809040708,-500.0,0.00021917,2]
[356031204,1741809040718,-500.0,0.00021917,2]
[356031205,1741809040727,-500.0,0.00021917,2]
[356031206,1741809040737,-586.2877314,0.00021917,2]
[356031207,1741809040746,-595.63280161,0.00021917,2]
[356031208,1741809040755,-501.66483492,0.00021917,2]
[356031209,1741809040764,-500.0,0.00021917,2]
[356031210,1741809040774,-500.0,0.00021917,2]
[356031211,1741809040783,-504.77159601,0.00021917,2]
[356031212,1741809040792,-500.0,0.00021917,2]
[356031213,1741809040801,-500.0,0.00021917,2]
[356031214,1741809040811,-505.12944844,0.00021917,2]
[356031215,1741809040820,-506.6040403,0.00021917,2]
[356031216,1741809040829,-441.82256377,0.00021917,2]
[356031217,1741809040838,-500.0,0.00021917,2]
[356031218,1741809040847,-502.00304415,0.00021917,2]
[356031219,1741809040856,-317.08529297,0.00021917,2]
[356031220,1741809040865,-500.0,0.00021917,2]
[356031221,1741809040874,-500.0,0.00021917,2]
[356031222,1741809040885,-500.0,0.00021917,2]
[356031223,1741809040894,-500.0,0.00021917,2]
[356031224,1741809040903,-204.1440205,0.00021917,2]
[356031225,1741809040912,-500.0,0.00021917,2]
[356031226,1741809040921,-500.0,0.00021917,2]
[356031227,1741809040931,-500.0,0.00021917,2]
[356031228,1741809040940,-500.0,0.00021917,2]
[356031229,1741809040951,-500.0,0.00021917,2]
[356031230,1741809040961,-500.0,0.00021917,2]
[356031231,1741809040971,-500.0,0.00021917,2]
[356031232,1741809040980,-500.0,0.00021917,2]
[356031233,1741809040990,-500.0,0.00021917,2]
[356031234,1741809040999,-500.0,0.00021917,2]
[356031235,1741809041009,-500.0,0.00021917,2]
[356031236,1741809041018,-505.95873464,0.00021917,2]
[356031237,1741809041027,-518.95376314,0.00021917,2]
[356031238,1741809041036,-500.0,0.00021917,2]
[356031239,1741809041046,-500.0,0.00021917,2]
[356031240,1741809041055,-500.0,0.00021917,2]
[356031241,1741809041065,-929.88,0.00021917,2]
[356031242,1741809041076,-860.93,0.00021917,2]
[356031243,1741809041087,-500.0,0.00021917,2]
[356031244,1741809041096,-500.0,0.00021917,2]
[356031245,1741809041106,-514.1,0.00021917,2]
[356031246,1741809041115,-559.31131292,0.00021917,2]
[356031247,1741809041126,-687.2,0.00021917,2]
[356031248,1741809041135,-500.0,0.00021917,2]
[356031249,1741809041144,-500.0,0.00021917,2]
[356031250,1741809041155,-500.0,0.00021917,2]
[356031251,1741809041165,-500.0,0.00021917,2]
[356031252,1741809041174,-500.0,0.00021917,2]
[356031253,1741809041184,-512.23505407,0.00021917,2]
[356031254,1741809041195,-505.44945636,0.00021917,2]
[356031255,1741809041204,-500.0,0.00021917,2]
[356031256,1741809041213,-500.0,0.00021917,2]
[356031257,1741809041222,-500.0,0.00021917,2]
[356031258,1741809041231,-500.0,0.00021917,2]
[356031259,1741809041240,-500.0,0.00021917,2]
[356031260,1741809041249,-500.0,0.00021917,2]
[356031261,1741809041259,-225.70543005,0.00021917,2]
[356031262,1741809041268,-946.27,0.00021917,2]
[356031263,1741809041277,-500.0,0.00021917,2]
[356031264,1741809041286,-552.28402071,0.00021917,2]
[356031265,1741809041295,-500.0,0.00021917,2]
[356031266,1741809041304,-500.0,0.00021917,2]
[356031267,1741809041313,-500.0,0.00021917,2]
[356031268,1741809041322,-500.0,0.00021917,2]
[356031269,1741809041331,-500.0,0.00021917,2]
[356031270,1741809041340,-500.0,0.00021917,2]
[356031271,1741809041350,-502.8315158,0.00021917,2]
[356031272,1741809041359,-500.90790766,0.00021917,2]
[356031273,1741809041368,-509.3799871,0.00021917,2]
[356031274,1741809041378,-500.0,0.00021917,2]
[356031275,1741809041387,-505.91168468,0.00021917,2]
[356031276,1741809041396,-500.0,0.00021917,2]
[356031277,1741809041405,-500.0,0.00021917,2]
[356031278,1741809041414,-500.0,0.00021917,2]
[356031279,1741809041424,-500.0,0.00021917,2]
[356031280,1741809041433,-500.0,0.00021917,2]
[356031281,1741809041443,-500.0,0.00021917,2]
[356031282,1741809041453,-885.6,0.00021917,2]
[356031283,1741809041462,-500.0,0.00021917,2]
[356031284,1741809041471,-502.58766362,0.00021917,2]
[356031285,1741809041480,-500.0,0.00021917,2]
[356031286,1741809041489,-500.0,0.00021917,2]
[356031287,1741809041499,-500.0,0.00021917,2]
[356031288,1741809041508,-500.0,0.00021917,2]
[356031289,1741809041517,-500.0,0.00021917,2]
[356031290,1741809041526,-421.31979836,0.00021917,2]
[356031291,1741809041535,-500.0,0.00021917,2]
[356031292,1741809041545,-500.0,0.00021917,2]
[356031293,1741809041554,-500.0,0.00021917,2]
[356031294,1741809041563,-500.0,0.00021917,2]
[356031295,1741809041572,-500.0,0.00021917,2]
[356031296,1741809041581,-500.0,0.00021917,2]
[356031297,1741809041590,-503.17715585,0.00021917,2]
[356031298,1741809041600,-500.0,0.00021917,2]
[356031299,1741809041609,-500.0,0.00021917,2]
[356031300,1741809041618,-510.64584715,0.00021917,2]
[356031301,1741809041628,-500.0,0.00021917,2]
[356031302,1741809041638,-1433.96,0.00021917,2]
[356031303,1741809041647,-502.55512563,0.00021917,2]
[356031304,1741809041658,-500.0,0.00021917,2]
[356031305,1741809041668,-501.08823221,0.00021917,2]
[356031306,1741809041678,-500.0,0.00021917,2]
[356031307,1741809041688,-500.0,0.00021917,2]
[356031308,1741809041699,-500.0,0.00021917,2]
[356031309,1741809041709,-508.40729306,0.00021917,2]
[356031310,1741809041718,-500.0,0.00021917,2]
[356031311,1741809041727,-500.0,0.00021917,2]
[356031312,1741809041737,-500.0,0.00021917,2]
[356031313,1741809041746,-501.57721571,0.00021917,2]
[356031314,1741809041756,-500.0,0.00021917,2]
[356031315,1741809041766,-500.0,0.00021917,2]
[356031316,1741809041776,-949.84,0.00021917,2]
[356031317,1741809041785,-500.0,0.00021917,2]
[356031318,1741809041796,-500.0,0.00021917,2]
[356031319,1741809041805,-514.00624379,0.00021917,2]
[356031320,1741809041815,-500.0,0.00021917,2]
[356031321,1741809041824,-861.29,0.00021917,2]
[356031322,1741809041834,-517.64,0.00021917,2]
[356031323,1741809041843,-504.06902287,0.00021917,2]
[356031324,1741809041852,-500.0,0.00021917,2]
[356031325,1741809041862,-508.49755987,0.00021917,2]
[356031326,1741809041871,-500.0,0.00021917,2]
[356031327,1741809041881,-500.0,0.00021917,2]
[356031328,1741809041890,-502.24818389,0.00021917,2]
[356031329,1741809041900,-500.0,0.00021917,2]
[356031330,1741809041909,-500.0,0.00021917,2]
[356031331,1741809041918,-955.96,0.00021917,2]
[356031332,1741809041927,-502.29,0.00021917,2]
[356031333,1741809041936,-514.87,0.00021917,2]
[356031334,1741809041949,-270.48531029,0.00021917,2]
[356031335,1741809041959,-842.43,0.00021917,2]
[356031336,1741809041968,-151.0,0.00021917,2]
[356031337,1741809041978,-500.0,0.00021917,2]
[356031338,1741809041988,-620.10195141,0.00021917,2]
[356031339,1741809041998,-504.85020491,0.00021917,2]
[356031340,1741809042007,-500.0,0.00021917,2]
[356031341,1741809042016,-500.0,0.00021917,2]
[356031342,1741809042026,-500.0,0.00021917,2]
[356031343,1741809042035,-500.0,0.00021917,2]
[356031344,1741809042044,-500.0,0.00021917,2]
[356031345,1741809042054,-500.0,0.00021917,2]
[356031346,1741809042064,-500.0,0.00021917,2]
[356031347,1741809042076,-500.0,0.00021917,2]
[356031348,1741809042086,-500.0,0.00021917,2]
[356031349,1741809042095,-500.0,0.00021917,2]
[356031350,1741809042104,-500.0,0.00021917,2]
[356031351,1741809042113,-420.7765298,0.00021917,2]
[356031352,1741809042122,-500.0,0.00021917,2]
[356031353,1741809042131,-500.0,0.00021917,2]
[356031354,1741809042141,-500.0,0.00021917,2]
[356031355,1741809042152,-500.0,0.00021917,2]
[356031356,1741809042161,-500.0,0.00021917,2]
[356031357,1741809042171,-500.0,0.00021917,2]
[356031358,1741809042180,-501.74341373,0.00021917,2]
[356031359,1741809042189,-500.0,0.00021917,2]
[356031360,1741809042201,-500.0,0.00021917,2]
[356031361,1741809042210,-1009.18,0.00021917,2]
[356031362,1741809042219,-500.0,0.00021917,2]
[356031363,1741809042230,-500.0,0.00021917,2]
[356031364,1741809042240,-151.0,0.00021917,2]
[356031365,1741809042249,-500.0,0.00021917,2]
[356031366,1741809042259,-500.0,0.00021917,2]
[356031367,1741809042269,-501.96633861,0.00021917,2]
[356031368,1741809042280,-500.0,0.00021917,2]
[356031369,1741809042289,-500.0,0.00021917,2]
[356031370,1741809042299,-500.0,0.00021917,2]
[356031371,1741809042308,-500.0,0.00021917,2]
[356031372,1741809042317,-151.0,0.00021917,2]
[356031373,1741809042326,-506.45226536,0.00021917,2]
[356031374,1741809042335,-500.0,0.00021917,2]
[356031375,1741809042344,-500.0,0.00021917,2]
[356031376,1741809042354,-500.0,0.00021917,2]
[356031377,1741809042363,-546.92,0.00021917,2]
[356031378,1741809042371,-500.0,0.00021917,2]
[356031379,1741809042381,-500.0,0.00021917,2]
[356031380,1741809042392,-508.23769914,0.00021917,2]
[356031381,1741809042401,-546.06,0.00021917,2]
[356031382,1741809042410,-518.50574985,0.00021917,2]
[356031383,1741809042419,-151.0,0.00021917,2]
[356031384,1741809042428,-500.0,0.00021917,2]
[356031385,1741809042438,-500.0,0.00021917,2]
[356031386,1741809042448,-151.0,0.00021917,2]
[356031387,1741809042458,-500.0,0.00021917,2]
[356031388,1741809042467,-151.0,0.00021917,2]
[356031389,1741809042476,-500.0,0.00021917,2]
[356031390,1741809042486,-500.0,0.00021917,2]
[356031391,1741809042494,-500.0,0.00021917,2]
[356031392,1741809042504,-500.0,0.00021917,2]
[356031393,1741809042513,-500.0,0.00021917,2]
[356031394,1741809042523,-500.0,0.00021917,2]
[356031395,1741809042532,-638.37521778,0.00021917,2]
[356031396,1741809042542,-500.85932994,0.00021917,2]
[356031397,1741809042551,-286.08046567,0.00021917,2]
[356031398,1741809042560,-520.50517129,0.00021917,2]
[356031399,1741809042570,-500.0,0.00021917,2]
[356031400,1741809042579,-500.0,0.00021917,2]
[356031401,1741809042588,-151.0,0.00021917,2]
[356031402,1741809042597,-1653.56,0.00021917,2]
[356031403,1741809042606,-1051.09,0.00021917,2]
[356031404,1741809042615,-500.0,0.00021917,2]
[356031405,1741809042624,-500.0,0.00021917,2]
[356031406,1741809042632,-500.0,0.00021917,2]
[356031407,1741809042642,-500.0,0.00021917,2]
[356031408,1741809042651,-500.0,0.00021917,2]
[356031409,1741809042660,-1703.6,0.00021917,2]
[356031410,1741809042670,-214.15718757,0.00021917,2]
[356031411,1741809042679,-151.0,0.00021917,2]
[356031412,1741809042688,-500.0,0.00021917,2]
[356031413,1741809042698,-500.0,0.00021917,2]
[356031414,1741809042707,-500.0,0.00021917,2]
[356031415,1741809042717,-328.94604777,0.00021917,2]
[356031416,1741809042726,-151.0,0.00021917,2]
[356031417,1741809042735,-151.0,0.00021917,2]
[356031418,1741809042744,-1047.52,0.00021917,2]
[356031419,1741809042753,-500.0,0.00021917,2]
[356031420,1741809042762,-500.0,0.00021917,2]
[356031421,1741809042771,-500.0,0.00021917,2]
[356031422,1741809042780,-500.0,0.00021917,2]
[356031423,1741809042790,-500.0,0.00021917,2]
[356031424,1741809042799,-500.0,0.00021917,2]
[356031425,1741809042808,-508.32868218,0.00021917,2]
[356031426,1741809042817,-500.0,0.00021917,2]
[356031427,1741809042826,-1574.66,0.00021917,2]
[356031428,1741809042836,-151.0,0.00021917,2]
[356031429,1741809042845,-500.0,0.00021917,2]
[356031430,1741809042855,-500.0,0.00021917,2]
[356031431,1741809042863,-537.0,0.00021917,2]
[356031432,1741809042873,-516.07149766,0.00021917,2]
[356031433,1741809042882,-500.0,0.00021917,2]
[356031434,1741809042891,-151.0,0.00021917,2]
[356031435,1741809042900,-386.11062339,0.00021917,2]
[356031436,1741809042909,-500.0,0.00021917,2]
[356031437,1741809042918,-1769.55,0.00021917,2]
[356031438,1741809042929,-523.24,0.00021917,2]
[356031439,1741809042938,-500.0,0.00021917,2]
[356031440,1741809042949,-500.0,0.00021917,2]
[356031441,1741809042959,-746.4,0.00021917,2]
[356031442,1741809042968,-151.0,0.00021917,2]
[356031443,1741809042977,-1191.99,0.00021917,2]
[356031444,1741809042986,-277.386886,0.00021917,2]
[356031445,1741809042996,-500.0,0.00021917,2]
[356031446,1741809043005,-500.0,0.00021917,2]
[356031447,1741809043014,-2156.11,0.00021917,2]
[356031448,1741809043023,-500.0,0.00021917,2]
[356031449,1741809043032,-520.06858878,0.00021917,2]
[356031450,1741809043042,-500.0,0.00021917,2]
[356031451,1741809043051,-505.97256253,0.00021917,2]
[356031452,1741809043060,-508.69685375,0.00021917,2]
[356031453,1741809043073,-500.0,0.00021917,2]
[356031454,1741809043082,-513.02273915,0.00021917,2]
[356031455,1741809043092,-510.37000107,0.00021917,2]
[356031456,1741809043100,-12973.82,0.00021917,2]
[356031457,1741809043109,-500.0,0.00021917,2]
[356031458,1741809043121,-428.4761151,0.00021917,2]
[356031459,1741809043130,-313.66917543,0.00021917,2]
[356031460,1741809043139,-500.0,0.00021917,2]
[356031461,1741809043148,-512.03991349,0.00021917,2]
[356031462,1741809043157,-500.0,0.00021917,2]
[356031463,1741809043166,-500.0,0.00021917,2]
[356031464,1741809043175,-4661.14,0.00021917,2]
[356031465,1741809043184,-500.0,0.00021917,2]
[356031466,1741809043193,-151.0,0.00021917,2]
[356031467,1741809043204,-500.0,0.00021917,2]
[356031468,1741809043213,-511.66569921,0.00021917,2]
[356031469,1741809043222,-510.4787682,0.00021917,2]
[356031470,1741809043231,-500.0,0.00021917,2]
[356031471,1741809043240,-500.0,0.00021917,2]
[356031472,1741809043248,-500.0,0.00021917,2]
[356031473,1741809043257,-500.0,0.00021917,2]
[356031474,1741809043267,-500.0,0.00021917,2]
[356031475,1741809043276,-181.977683,0.00021917,2]
[356031476,1741809043285,-500.0,0.00021917,2]
[356031477,1741809043294,-500.0,0.00021917,2]
[356031479,1741809043304,-500.0,0.00021917,2]
[356031480,1741809043313,-500.0,0.00021917,2]
[356031481,1741809043322,-440.25150873,0.00021917,2]
[356031482,1741809043331,-514.86,0.00021917,2]
[356031483,1741809043340,-181.977683,0.00021917,2]
[356031484,1741809043350,-500.0,0.00021917,2]
[356031486,1741809043360,-500.0,0.00021917,2]
[356031488,1741809043369,-957.96,0.00021917,2]
[356031490,1741809043378,-500.0,0.00021917,2]
[356031491,1741809043387,-1050.365468,0.00021917,2]
[356031492,1741809043397,-500.0,0.00021917,2]
[356031493,1741809043406,-151.0,0.00021917,2]
[356031494,1741809043415,-7479.31,0.00021917,2]
[356031495,1741809043424,-569.90006043,0.00021917,2]
[356031497,1741809043433,-1050.365468,0.00021917,2]
[356031499,1741809043442,-775.01,0.00021917,2]
[356031501,1741809043453,-500.0,0.00021917,2]
[356031503,1741809043462,-500.0,0.00021917,2]
[356031505,1741809043471,-1212.52,0.00021917,2]
[356031506,1741809043481,-1212.52,0.00021917,2]
[356031507,1741809043490,-1212.52,0.00021917,2]
[356031508,1741809043501,-500.0,0.00021917,2]
[356031510,1741809043510,-546.23,0.00021917,2]
[356031512,1741809043519,-1212.52,0.00021917,2]
[356031514,1741809043529,-1212.52,0.00021917,2]
[356031516,1741809043538,-1212.52,0.00021917,2]
[356031518,1741809043547,-828.39,0.00021917,2]
[356031520,1741809043557,-1212.52,0.00021917,2]
[356031522,1741809043566,-1212.52,0.00021917,2]
[356031524,1741809043574,-500.0,0.00021917,2]
[356031526,1741809043584,-1212.52,0.00021917,2]
[356031528,1741809043593,-1212.52,0.00021917,2]
[356031530,1741809043602,-1212.52,0.00021917,2]
[356031532,1741809043611,-1212.52,0.00021917,2]
[356031534,1741809043620,-4805.33,0.00021917,2]
[356031536,1741809043630,-607.2,0.00021917,2]
[356031538,1741809043639,-1212.52,0.00021917,2]
[356031540,1741809043649,-1212.52,0.00021917,2]
[356031542,1741809043658,-1212.52,0.00021917,2]
[356031544,1741809043668,-1212.52,0.00021917,2]
[356031546,1741809043677,-1212.52,0.00021917,2]
[356031548,1741809043687,-1212.52,0.00021917,2]
[356031551,1741809043697,-504.29042166,0.00021917,2]
[356031552,1741809043706,-1212.52,0.00021917,2]
[356031554,1741809043715,-1212.52,0.00021917,2]
[356031556,1741809043725,-1212.52,0.00021917,2]
[356031557,1741809043735,-1212.52,0.00021917,2]
[356031558,1741809043744,-1212.52,0.00021917,2]
[356031559,1741809043754,-1212.66241266,0.00021917,2]
[356031560,1741809043763,-506.10192912,0.00021917,2]
[356031561,1741809043772,-3238.74,0.00021917,2]
[356031562,1741809043782,-151.0,0.00021917,2]
[356031563,1741809043792,-151.0,0.00021917,2]
[356031564,1741809043802,-500.0,0.00021917,2]
[356031565,1741809043811,-500.0,0.00021917,2]
[356031566,1741809043820,-500.0,0.00021917,2]
[356031567,1741809043829,-1542.79,0.00021917,2]
[356031568,1741809043839,-500.0,0.00021917,2]
[356031569,1741809043848,-151.0,0.00021917,2]
[356031570,1741809043858,-500.0,0.00021917,2]
[356031571,1741809043867,-500.0,0.00021917,2]
[356031572,1741809043877,-500.0,0.00021917,2]
[356031573,1741809043886,-500.0,0.00021917,2]
[356031574,1741809043895,-1463.89,0.00021917,2]
[356031575,1741809043904,-2697.44,0.00021917,2]
[356031577,1741809043914,-500.0,0.00021917,2]
[356031579,1741809043924,-1731.81,0.00021917,2]